bitfinex-derivatives/quotes_SOLF0:USTF0_20250820
["timestamp","ask_amount","ask_price","bid_price","bid_amount"]
[1755729348382,0.03580709,186.98,186.95,0.03805602]
[1755729348383,0.03580709,186.98,186.95,3.09805602]
[1755729349079,0.03580709,186.98,186.97,3.06]
[1755729350182,0.03580709,186.98,186.96,3.06]
[1755729352094,2.75,186.97,186.95,0.03805602]
[1755729352384,0.03580709,186.98,186.95,0.03805602]
[1755729352587,2.75,186.96,186.95,0.03805602]
[1755729356895,2.76580709,186.98,186.95,0.03805602]
[1755729357094,2.73,186.97,186.95,0.03805602]
[1755729359898,2.73,186.96,186.95,0.03805602]
[1755729360789,0.03580709,186.98,186.95,0.03805602]
[1755729360998,2.73,186.96,186.95,0.03805602]
[1755729361894,0.03580709,186.98,186.95,0.03805602]
[1755729361895,0.03580709,186.98,186.96,2.87]
[1755729362594,2.76580709,186.98,186.95,0.03805602]
[1755729362794,2.73,186.97,186.95,0.03805602]
[1755729362996,2.73,186.96,186.95,0.03805602]
[1755729363395,2.76580709,186.98,186.95,0.03805602]
[1755729363605,2.76580709,186.98,186.95,2.90805602]
[1755729364712,0.03580709,186.98,186.95,2.90805602]
[1755729365008,0.03580709,186.98,186.97,2.87]
[1755729368009,0.03580709,186.98,186.97,8.2173]
[1755729368210,0.03580709,186.98,186.97,2.87]
[1755729369507,0.03580709,186.98,186.95,2.90805602]
[1755729369712,2.73,186.97,186.95,0.03805602]
[1755729369911,2.73,186.96,186.95,0.03805602]
[1755729370215,2.76580709,186.98,186.95,0.03805602]
[1755729370608,2.73,186.97,186.95,0.03805602]
[1755729370804,0.03580709,186.98,186.95,2.90805602]
[1755729371408,2.76580709,186.98,186.95,2.90805602]
[1755729371918,0.03580709,186.98,186.95,0.03805602]
[1755729372213,0.03580709,186.98,186.96,2.87]
[1755729372808,0.03580709,186.98,186.95,0.03805602]
[1755729373109,0.03580709,186.98,186.97,2.87]
[1755729376416,0.03580709,186.98,186.95,0.03805602]
[1755729376620,0.03580709,186.98,186.95,2.90805602]
[1755729377715,0.03580709,186.98,186.96,2.87]
[1755729380223,0.03580709,186.98,186.95,0.03805602]
[1755729380622,0.03580709,186.98,186.96,2.87]
[1755729383122,0.03580709,186.98,186.97,2.87]
[1755729385023,2.76580709,186.98,186.95,2.90805602]
[1755729386422,2.75,186.97,186.95,0.03805602]
[1755729386627,2.75,186.96,186.95,0.03805602]
[1755729387429,0.03580709,186.98,186.95,0.03805602]
[1755729387627,0.03580709,186.98,186.95,3.08805602]
[1755729387820,2.75,186.96,186.95,0.03805602]
[1755729389325,0.03580709,186.98,186.95,0.03805602]
[1755729389524,2.78580709,186.98,186.95,0.03805602]
[1755729390030,2.75,186.97,186.95,0.03805602]
[1755729390727,2.75,186.96,186.95,0.03805602]
[1755729394030,0.03580709,186.98,186.96,3.05]
[1755729394224,0.03580709,186.98,186.97,3.05]
[1755729396734,0.03580709,186.98,186.95,3.08805602]
[1755729396924,0.03580709,186.98,186.95,0.03805602]
[1755729397125,0.03580709,186.98,186.96,3.05]
[1755729397325,0.03580709,186.98,186.95,0.03805602]
[1755729397533,0.03580709,186.98,186.96,3.05]
[1755729397732,2.78580709,186.98,186.95,0.03805602]
[1755729398127,2.78580709,186.98,186.95,3.08805602]
[1755729398322,0.03580709,186.98,186.95,0.03805602]
[1755729398525,0.03580709,186.98,186.97,3.05]
[1755729399524,0.03580709,186.98,186.97,8.3973]
[1755729399729,2.75,187.05,186.97,3.05]
[1755729400626,2.75,187.05,186.95,131.72]
[1755729400835,2.75,187.05,186.95,140.1179]
[1755729401027,2.75,187.05,186.99,0.03535167]
[1755729406635,2.75,187.0,186.99,0.03535167]
[1755729407539,5.07968946,187.0,186.99,0.03535167]
[1755729407728,5.07968946,187.0,186.91,134.79]
[1755729407932,2.75,186.99,186.91,134.79]
[1755729408927,2.75,186.99,186.91,3.05]
[1755729413541,2.75,186.96,186.89,3.05]
[1755729419444,2.32968946,186.97,186.9,2.86]
[1755729420042,2.32968946,186.97,186.9,8.2092]
[1755729420242,2.32968946,186.97,186.91,2.86]
[1755729420442,2.75,186.99,186.91,2.86]
[1755729420748,140.50792147,187.0,186.93,2.86]
[1755729421240,143.25792147,187.0,186.93,2.86]
[1755729423546,131.58,187.05,186.94,2.86]
[1755729423547,2.75,187.05,186.94,2.86]
[1755729424046,2.75,187.05,186.95,5.3478]
[1755729424254,2.75,187.05,186.93,2.32968946]
[1755729424255,2.75,187.05,186.96,2.86]
[1755729425546,2.75,187.02,186.96,2.86]
[1755729425747,2.75,187.02,186.93,2.86]
[1755729426455,2.75,187.09,186.97,2.86]
[1755729426847,2.75,187.09,186.97,8.2073]
[1755729427047,2.75,187.09,186.98,2.86]
[1755729427555,2.75,187.09,186.99,2.86]
[1755729427750,2.75,187.09,186.99,5.18968946]
[1755729428054,2.75,187.09,187.02,5.3459]
[1755729428248,131.48,187.1,187.03,2.86]
[1755729428448,2.75,187.12,187.03,2.86]
[1755729429761,2.75,187.1,187.03,2.86]
[1755729430260,2.32968946,187.11,187.03,2.86]
[1755729430760,2.75,187.15,187.05,2.86]
[1755729431154,2.75,187.15,187.05,8.2048]
[1755729431359,2.75,187.15,187.05,2.86]
[1755729431853,2.75,187.14,187.05,2.86]
[1755729433556,131.64,187.18,187.09,5.3438]
[1755729433755,5.07968946,187.19,187.1,2.86]
[1755729433959,2.75,187.19,187.1,2.86]
[1755729436563,5.07968946,187.19,187.1,2.86]
[1755729437067,2.74,187.26,187.1,5.18968946]
[1755729437269,2.74,187.23,187.11,2.86]
[1755729437661,2.74,187.23,187.11,8.2031]
[1755729438969,2.74,187.23,187.11,2.86]
[1755729440771,2.74,187.23,187.12,2.86]
[1755729441269,2.74,187.23,187.12,8.2028]
[1755729441468,2.74,187.23,187.13,2.86]
[1755729448677,2.74,187.23,187.13,8.2027]
[1755729449668,2.74,187.23,187.14,2.86]
[1755729451078,2.74,187.23,187.15,2.86]
[1755729454683,2.74,187.23,187.15,8.2021]
[1755729454977,2.75,187.22,187.15,2.86]
[1755729455184,2.75,187.22,187.16,2.86]
[1755729456080,5.07968946,187.26,187.17,2.86]
[1755729457184,5.07968946,187.26,187.17,8.2015]
[1755729457985,2.32968946,187.23,187.12,2.32968946]
[1755729458182,2.75,187.22,187.13,2.86]
[1755729459986,2.75,187.22,187.13,8.2026]
[1755729460378,2.75,187.22,187.13,2.86]
[1755729463486,2.75,187.2,187.13,2.86]
[1755729468195,2.32968946,187.24,187.13,2.86]
[1755729468500,2.75,187.2,187.13,2.86]
[1755729471498,2.75,187.2,187.13,8.2026]
[1755729471695,2.75,187.2,187.14,2.86]
[1755729472498,2.32968946,187.22,187.15,2.86]
[1755729473095,2.32968946,187.22,187.15,8.2021]
[1755729473292,2.32968946,187.22,187.16,2.86]
[1755729473494,2.75,187.23,187.16,2.86]
[1755729473801,2.32968946,187.25,187.17,2.86]
[1755729475398,2.32968946,187.25,187.17,8.2015]
[1755729475600,2.32968946,187.25,187.17,2.86]
[1755729477400,2.75,187.21,187.11,2.89]
[1755729477595,2.32968946,187.19,187.11,2.89]
[1755729477795,5.07968946,187.19,187.11,2.89]
[1755729480198,2.75,187.18,187.11,2.89]
[1755729480401,2.75,187.14,187.1,202.27452302]
[1755729480595,2.75,187.13,187.1,202.27452302]
[1755729480798,2.75,187.13,187.1,205.16452302]
[1755729481504,5.07968946,187.16,187.1,202.27452302]
[1755729481894,160.28156391,187.27,187.12,2.89]
[1755729481895,8.31048564,187.2,187.12,2.89]
[1755729482199,2.32968946,187.2,187.12,2.89]
[1755729483700,2.32968946,187.2,187.14,2.89]
[1755729484901,2.75,187.19,187.1,202.27452302]
[1755729485207,2.75,187.19,187.11,2.89]
[1755729487209,2.75,187.19,187.11,8.2331]
[1755729487410,2.75,187.19,187.12,2.89]
[1755729487807,2.75,187.19,187.13,2.89]
[1755729491107,2.32968946,187.2,187.13,2.89]
[1755729491312,2.75,187.22,187.13,2.89]
[1755729491607,2.75,187.22,187.14,5.3424]
[1755729491905,2.75,187.22,187.15,2.89]
[1755729492308,2.75,187.22,187.16,2.89]
[1755729495612,2.75,187.19,187.1,205.16452302]
[1755729496016,2.75,187.19,187.11,5.3432]
[1755729496410,2.75,187.19,187.1,205.16452302]
[1755729496706,2.75,187.19,187.1,210.50802302]
[1755729496912,2.75,187.19,187.1,205.16452302]
[1755729497805,2.75,187.16,187.1,205.16452302]
[1755729499414,2.75,187.19,187.11,2.89]
[1755729504011,2.75,187.19,187.11,8.2332]
[1755729505918,2.75,187.19,187.12,3.01]
[1755729506419,2.32968946,187.2,187.12,3.01]
[1755729506922,2.75,187.19,187.12,3.01]
[1755729508914,2.32968946,187.23,187.12,3.01]
[1755729509419,2.32968946,187.23,187.15,5.342]
[1755729509620,2.32968946,187.23,187.16,3.01]
[1755729510417,2.32968946,187.23,187.16,8.3518]
[1755729510617,2.32968946,187.23,187.16,3.01]
[1755729510818,2.75,187.22,187.16,3.01]
[1755729512120,2.75,187.22,187.11,8.3531]
[1755729512727,2.75,187.22,187.11,3.01]
[1755729513321,2.75,187.22,187.11,8.3532]
[1755729513727,2.75,187.22,187.12,3.01]
[1755729514025,2.75,187.22,187.14,3.01]
[1755729517124,2.75,187.22,187.14,5.3424]
[1755729517329,2.75,187.22,187.15,3.01]
[1755729522632,2.75,187.22,187.15,8.352]
[1755729522829,2.75,187.22,187.12,3.01]
[1755729523530,2.75,187.22,187.15,5.3422]
[1755729523836,2.75,187.22,187.16,3.01]
[1755729525034,2.75,187.22,187.13,3.01]
[1755729526445,2.75,187.22,187.13,8.3528]
[1755729526635,2.75,187.22,187.14,3.01]
[1755729527032,2.75,187.26,187.14,5.33968946]
[1755729527240,2.75,187.26,187.15,3.01]
[1755729527642,2.75,187.26,187.17,5.3415]
[1755729527838,2.75,187.26,187.18,3.01]
[1755729528440,2.75,187.26,187.15,3.01]
[1755729529443,2.75,187.26,187.19,3.01]
[1755729529948,2.75,187.23,187.13,8.3527]
[1755729530639,2.75,187.23,187.13,3.01]
[1755729531340,2.75,187.23,187.13,8.3526]
[1755729531641,2.75,187.2,187.13,3.01]
[1755729533246,2.75,187.23,187.15,3.01]
[1755729533839,2.75,187.23,187.16,3.01]
[1755729534542,2.75,187.23,187.16,8.3519]
[1755729534844,2.75,187.23,187.17,3.01]
[1755729540147,2.75,187.23,187.17,8.3516]
[1755729542650,137.87629951,187.28,187.21,2.87]
[1755729543349,137.87629951,187.28,187.21,8.2103]
[1755729543949,137.87629951,187.28,187.21,2.87]
[1755729544349,2.74,187.3,187.25,5.3393]
[1755729544544,133.82,187.33,187.26,2.87]
[1755729545053,131.08,187.33,187.26,2.87]
[1755729545254,2.74,187.32,187.26,2.87]
[1755729545550,2.74,187.32,187.23,2.87]
[1755729548947,2.74,187.29,187.18,2.87]
[1755729549150,5.06968946,187.27,187.18,2.87]
[1755729549350,5.06968946,187.27,187.19,5.3411]
[1755729549547,5.06968946,187.27,187.2,2.87]
[1755729550449,5.06968946,187.27,187.2,8.2108]
[1755729553157,5.06968946,187.27,187.2,2.87]
[1755729554251,2.74,187.26,187.2,2.87]
[1755729554452,2.32968946,187.27,187.2,2.87]
[1755729554856,2.32968946,187.27,187.2,8.2106]
[1755729555060,2.32968946,187.27,187.2,2.87]
[1755729555262,2.74,187.26,187.2,2.87]
[1755729555466,2.32968946,187.27,187.17,2.32968946]
[1755729555656,2.32968946,187.27,187.14,8.2498433]
[1755729556158,2.32968946,187.27,187.18,5.3413]
[1755729556857,2.32968946,187.27,187.17,5.3416]
[1755729557362,0.03370908,187.24,187.17,5.3416]
[1755729558758,0.03370908,187.24,187.18,5.3414]
[1755729560465,0.03370908,187.24,187.17,2.32968946]
[1755729560763,0.03370908,187.24,187.18,2.87]
[1755729562364,0.03370908,187.24,187.2,5.3406]
[1755729562558,0.03370908,187.24,187.21,2.87]
[1755729562756,0.03370908,187.24,187.22,2.87]
[1755729563157,0.03370908,187.24,187.2,2.87]
[1755729563365,0.03370908,187.24,187.22,2.87]
[1755729567370,0.03370908,187.24,187.19,5.341]
[1755729567561,0.03370908,187.24,187.23,3.0]
[1755729567959,0.03370908,187.24,187.2,3.0]
[1755729568171,0.03370908,187.24,187.21,3.0]
[1755729568563,0.03370908,187.24,187.22,3.0]
[1755729568763,0.03370908,187.24,187.21,3.0]
[1755729568966,0.03370908,187.24,187.22,3.0]
[1755729569973,0.03370908,187.24,187.23,3.0]
[1755729579678,0.03370908,187.24,187.21,5.3405]
[1755729579878,0.03370908,187.24,187.22,3.0]
[1755729580079,0.03370908,187.24,187.23,3.0]
[1755729580684,2.77370908,187.24,187.21,3.0]
[1755729581075,0.03370908,187.24,187.22,3.0]
[1755729583585,0.03370908,187.24,187.21,5.3405]
[1755729583783,0.03370908,187.24,187.23,3.0]
[1755729584480,0.03370908,187.24,187.23,8.34]
[1755729584881,0.03370908,187.24,187.23,3.0]
[1755729585082,2.77370908,187.24,187.19,2.32968946]
[1755729585283,2.77370908,187.24,187.2,3.0]
[1755729585585,2.77370908,187.24,187.21,3.0]
[1755729586584,0.03370908,187.24,187.22,3.0]
[1755729586882,0.03370908,187.24,187.2,3.0]
[1755729587278,0.03370908,187.24,187.22,3.0]
[1755729587479,0.03370908,187.24,187.21,5.3404]
[1755729587675,0.03370908,187.24,187.22,3.0]
[1755729587881,0.03370908,187.24,187.23,3.0]
[1755729589789,0.03370908,187.24,187.21,8.3405]
[1755729589991,0.03370908,187.24,187.21,3.0]
[1755729590486,0.03370908,187.24,187.22,3.0]
[1755729590878,2.77370908,187.24,187.21,3.0]
[1755729591082,0.03370908,187.24,187.22,3.0]
[1755729591380,2.77370908,187.24,187.2,8.3408]
[1755729592081,0.03370908,187.24,187.21,5.3405]
[1755729592386,2.77370908,187.24,187.18,134.08]
[1755729592582,2.77370908,187.24,187.19,5.3409]
[1755729592583,0.03370908,187.24,187.19,5.3409]
[1755729592887,2.74,187.23,187.19,8.3409]
[1755729593787,2.74,187.23,187.2,8.3408]
[1755729594182,2.74,187.23,187.21,5.3405]
[1755729594385,2.74,187.23,187.21,8.3405]
[1755729594581,0.03370908,187.24,187.21,8.3405]
[1755729594785,2.77370908,187.24,187.21,8.3405]
[1755729595191,0.03370908,187.24,187.22,3.0]
[1755729597380,2.75,187.23,187.19,8.1011]
[1755729597584,2.78370908,187.24,187.21,2.76]
[1755729597897,2.75,187.23,187.21,2.76]
[1755729598587,2.75,187.23,187.19,2.76]
[1755729598789,2.75,187.23,187.2,2.76]
[1755729599089,0.03370908,187.24,187.18,131.08]
[1755729599293,2.78370908,187.24,187.18,131.08]
[1755729599898,2.78370908,187.24,187.16,210.78782759]
[1755729600390,2.78370908,187.24,187.16,202.68602759]
[1755729600586,2.32968946,187.23,187.16,202.68602759]
[1755729600884,2.75,187.22,187.16,205.44602759]
[1755729601084,2.75,187.22,187.16,202.68602759]
[1755729604195,5.07968946,187.22,187.16,202.68602759]
[1755729604386,2.75,187.21,187.16,202.68602759]
[1755729605891,2.75,187.2,187.16,202.68602759]
[1755729606091,2.32968946,187.22,187.16,202.68602759]
[1755729606293,5.07968946,187.22,187.16,202.68602759]
[1755729607292,0.03422656,187.21,187.16,202.68602759]
[1755729607596,2.75,187.2,187.17,2.76]
[1755729608691,2.75,187.19,187.16,202.68602759]
[1755729608900,2.75,187.19,187.15,2.76]
[1755729609101,2.75,187.19,187.12,5.343]
[1755729609294,2.75,187.19,187.13,2.76]
[1755729610400,2.75,187.19,187.13,8.1028]
[1755729611103,2.75,187.19,187.14,2.76]
[1755729611498,2.75,187.19,187.15,2.76]
[1755729611801,2.75,187.19,187.16,2.76]
[1755729612003,2.75,187.19,187.17,2.76]
[1755729613601,2.32968946,187.22,187.16,2.76]
[1755729614001,5.07968946,187.22,187.16,2.76]
[1755729614704,2.75,187.22,187.16,2.76]
[1755729622205,2.32968946,187.21,187.13,2.76]
[1755729622407,2.75,187.2,187.13,2.76]
[1755729623504,2.75,187.2,187.12,8.103]
[1755729624808,2.75,187.2,187.12,2.76]
[1755729629508,2.74,187.17,187.09,2.93]
[1755729629715,2.32968946,187.15,187.09,2.93]
[1755729630115,2.74,187.12,187.09,2.93]
[1755729630814,2.74,187.12,187.1,2.93]
[1755729631612,2.74,187.11,187.06,2.93]
[1755729631809,2.74,187.11,187.08,2.93]
[1755729635913,2.74,187.11,187.06,2.93]
[1755729636115,2.74,187.11,187.07,2.93]
[1755729636311,2.74,187.11,187.08,2.93]
[1755729636515,2.74,187.11,187.09,2.93]
[1755729640016,2.74,187.14,187.07,5.3448]
[1755729640224,2.32968946,187.15,187.08,2.93]
[1755729640720,2.74,187.16,187.08,2.93]
[1755729641018,5.07968946,187.18,187.08,2.93]
[1755729641416,5.07968946,187.18,187.1,5.3438]
[1755729641722,5.07968946,187.18,187.11,2.93]
[1755729642522,2.75,187.18,187.11,8.2737]
[1755729643124,5.07968946,187.18,187.08,2.93]
[1755729643325,137.78079618,187.24,187.08,2.93]
[1755729643326,2.75,187.14,187.08,2.93]
[1755729644426,2.75,187.14,187.01,138.02015384]
[1755729644427,2.75,187.14,187.05,2.93]
[1755729645827,2.75,187.14,187.06,5.3451]
[1755729646028,2.75,187.14,187.07,2.93]
[1755729647926,2.75,187.14,187.07,8.2748]
[1755729648123,5.07968946,187.19,187.07,2.93]
[1755729648523,2.75,187.18,187.11,2.93]
[1755729649529,2.75,187.18,187.11,8.2735]
[1755729649726,2.75,187.18,187.12,2.93]
[1755729650123,141.16144443,187.19,187.12,2.32968946]
[1755729650317,141.16144443,187.19,187.13,2.93]
[1755729650527,2.75,187.21,187.14,5.3428]
[1755729650721,2.75,187.21,187.15,2.93]
[1755729651834,2.75,187.24,187.15,2.93]
[1755729652024,2.75,187.24,187.15,5.25968946]
[1755729652333,2.75,187.24,187.17,5.3419]
[1755729652527,2.75,187.24,187.18,2.93]
[1755729655421,2.75,187.24,187.14,2.93]
[1755729657630,2.75,187.24,187.14,8.2726]
[1755729657828,361.36968946,187.25,187.05,19.57073076]
[1755729657829,359.04,187.25,187.16,2.83]
[1755729658030,142.2947712,187.26,187.16,2.83]
[1755729658536,142.2947712,187.26,187.2,2.83]
[1755729660131,142.2947712,187.26,187.2,8.1711]
[1755729660335,142.2947712,187.26,187.2,2.83]
[1755729663134,142.2947712,187.26,187.2,8.1711]
[1755729663343,142.2947712,187.26,187.2,2.83]
[1755729668338,5.06968946,187.25,187.16,2.83]
[1755729668538,2.74,187.24,187.16,2.83]
[1755729669537,2.74,187.22,187.16,2.83]
[1755729671446,139.5547712,187.26,187.18,2.83]
[1755729671943,139.5547712,187.26,187.2,5.341]
[1755729672337,142.2947712,187.26,187.22,2.83]
[1755729673045,2.74,187.25,187.22,2.83]
[1755729673345,2.74,187.25,187.19,5.3413]
[1755729674746,2.74,187.25,187.21,2.83]
[1755729676137,139.5547712,187.26,187.21,2.83]
[1755729676340,2.74,187.24,187.21,2.83]
[1755729678847,2.74,187.24,187.17,2.32968946]
[1755729678848,2.74,187.25,187.18,2.83]
[1755729679942,2.74,187.25,187.16,8.172]
[1755729681348,2.74,187.25,187.17,5.342]
[1755729681541,2.74,187.25,187.16,2.83]
[1755729683750,2.74,187.25,187.16,8.1722]
[1755729684150,2.74,187.25,187.16,2.83]
[1755729686145,2.74,187.25,187.14,3.02]
[1755729686345,131.2,187.24,187.14,3.02]
[1755729687352,2.76,187.23,187.15,5.3424]
[1755729687547,2.76,187.23,187.16,3.02]
[1755729687749,131.2,187.24,187.16,3.02]
[1755729687943,131.2,187.24,187.17,5.3419]
[1755729688151,131.2,187.24,187.18,3.02]
[1755729689246,144.64446066,187.26,187.18,3.02]
[1755729689449,131.2,187.25,187.18,3.02]
[1755729689744,131.2,187.25,187.18,8.3616]
[1755729689956,131.2,187.25,187.19,3.02]
[1755729692449,131.2,187.25,187.19,8.3612]
[1755729692852,2.76,187.24,187.15,3.02]
[1755729693355,131.2,187.25,187.15,3.02]
[1755729693356,2.76,187.22,187.15,3.02]
[1755729693551,131.2,187.21,187.15,3.02]
[1755729693957,2.76,187.19,187.15,3.02]
[1755729694655,131.2,187.21,187.16,3.02]
[1755729694859,2.76,187.2,187.16,3.02]
[1755729697459,2.76,187.2,187.09,8.2498433]
[1755729697460,133.96,187.21,187.15,3.02]
[1755729697758,131.2,187.21,187.11,5.3436]
[1755729697956,2.76,187.2,187.12,3.02]
[1755729699552,2.76,187.2,187.14,3.02]
[1755729703267,3.90017068,187.24,187.19,3.02]
[1755729703464,11.89119427,187.36,187.24,2.54]
[1755729703764,2.92,187.36,187.28,2.54]
[1755729704068,2.92,187.36,187.28,4.86968946]
[1755729704261,0.0339216,187.32,187.29,2.54]
[1755729704461,0.0339216,187.32,187.3,2.54]
[1755729704669,0.0339216,187.32,187.31,2.54]
[1755729705266,0.0339216,187.32,187.31,10.20768946]
[1755729705462,2.92,187.43,187.32,2.54]
[1755729705770,2.92,187.43,187.34,2.54]
[1755729705958,2.92,187.43,187.34,9.34969099]
[1755729706158,228.69898227,187.45,187.37,2.32968946]
[1755729706362,2.92,187.47,187.41,2.54]
[1755729706568,2.92,187.51,187.42,9.97151007]
[1755729706761,2.92,187.51,187.43,9.97151007]
[1755729706963,2.92,187.51,187.44,9.97151007]
[1755729707162,5.24968946,187.51,187.45,9.96797351]
[1755729707365,2.92,187.5,187.46,5.1229681]
[1755729707579,2.92,187.5,187.47,5.1229681]
[1755729707766,2.92,187.5,187.48,5.1229681]
[1755729707963,2.92,187.5,187.49,2.0629681]
[1755729708170,2.92,187.5,187.46,0.03851957]
[1755729708770,132.24,187.52,187.46,0.03851957]
[1755729709268,2.92,187.47,187.46,0.03851957]
[1755729710561,3.46,187.47,187.46,0.03851957]
[1755729710871,2.92,187.47,187.46,0.03851957]
[1755729711068,2.92,187.52,187.46,0.03851957]
[1755729711270,132.22,187.51,187.46,0.03851957]
[1755729711466,2.92,187.5,187.46,0.03851957]
[1755729712067,2.92,187.5,187.46,3.05851957]
[1755729713072,2.92,187.5,187.47,4.98974092]
[1755729713378,132.22,187.51,187.46,3.05851957]
[1755729713570,2.92,187.5,187.46,0.03851957]
[1755729714073,132.22,187.51,187.46,0.03851957]
[1755729714269,2.92,187.47,187.46,0.03851957]
[1755729714661,2.92,187.5,187.46,0.03851957]
[1755729714870,132.22,187.51,187.46,0.03851957]
[1755729715067,2.92,187.49,187.46,0.03851957]
[1755729715474,2.92,187.5,187.46,0.03851957]
[1755729715771,2.92,187.49,187.46,0.03851957]
[1755729716874,2.86,187.5,187.46,0.03851957]
[1755729717071,2.86,187.49,187.46,0.03851957]
[1755729718169,3.66371267,187.53,187.46,0.03851957]
[1755729718369,144.92685416,187.54,187.46,3.01851957]
[1755729718570,132.24,187.53,187.47,4.97180717]
[1755729718772,132.24,187.53,187.46,3.01851957]
[1755729718969,132.24,187.53,187.47,4.97211804]
[1755729719172,2.86,187.54,187.46,3.01851957]
[1755729719474,132.18,187.54,187.5,2.98]
[1755729719770,132.18,187.54,187.51,2.98]
[1755729720275,132.18,187.54,187.51,0.03433571]
[1755729720470,2.86,187.52,187.44,2.98]
[1755729720778,2.86,187.55,187.49,2.98]
[1755729720966,358.94,187.56,187.49,2.98]
[1755729720967,132.22,187.54,187.5,4.92228482]
[1755729721171,132.22,187.54,187.5,2.98]
[1755729721373,135.08,187.54,187.47,2.98]
[1755729721570,135.08,187.54,187.48,9.88475818]
[1755729721772,0.03809953,187.52,187.49,4.91978717]
[1755729721970,0.03809953,187.52,187.41,3.66371267]
[1755729722172,0.03809953,187.52,187.51,2.98]
[1755729722373,0.03809953,187.52,187.51,12.86377497]
[1755729722769,0.03809953,187.52,187.51,9.88377497]
[1755729722969,0.03809953,187.52,187.51,4.91946913]
[1755729723777,0.03809953,187.52,187.43,2.98]
[1755729723969,132.31809953,187.52,187.44,9.86361431]
[1755729724169,132.28,187.52,187.45,9.86361431]
[1755729724368,2.86,187.5,187.46,9.86361431]
[1755729724571,0.03954458,187.5,187.43,2.98]
[1755729724775,0.03954458,187.5,187.44,9.86591202]
[1755729724974,2.86,187.49,187.45,9.86591202]
[1755729725271,2.86,187.49,187.46,4.90879823]
[1755729725475,2.86,187.49,187.43,2.98]
[1755729725675,2.86,187.49,187.44,7.93732315]
[1755729725974,2.86,187.49,187.45,4.95732315]
[1755729726177,2.86,187.49,187.44,2.98]
[1755729726374,2.86,187.49,187.45,4.95727145]
[1755729726571,2.86,187.49,187.44,2.98]
[1755729726774,2.86,187.49,187.45,4.95726787]
[1755729726970,2.86,187.49,187.44,2.98]
[1755729727178,2.86,187.49,187.45,4.95651137]
[1755729727471,0.03954458,187.5,187.46,2.98]
[1755729727678,0.03954458,187.5,187.48,2.98]
[1755729727872,132.18,187.52,187.48,2.98]
[1755729728074,135.04,187.52,187.48,2.98]
[1755729728267,0.03836164,187.51,187.48,2.98]
[1755729728470,0.03836164,187.51,187.45,8.3139]
[1755729728667,2.89836164,187.51,187.46,4.95341987]
[1755729728870,2.89836164,187.51,187.44,2.98]
[1755729729068,2.89836164,187.51,187.45,4.95436558]
[1755729729271,2.89836164,187.51,187.44,2.98]
[1755729729568,2.89836164,187.51,187.45,4.95446798]
[1755729729876,2.89836164,187.51,187.44,2.98]
[1755729730073,0.03836164,187.51,187.45,4.95483351]
[1755729730274,0.03836164,187.51,187.44,2.98]
[1755729730476,0.03836164,187.51,187.45,10.28888918]
[1755729730681,0.03836164,187.51,187.45,5.3338]
[1755729730977,0.03836164,187.51,187.44,8.3142]
[1755729731374,2.86,187.5,187.4,2.98]